[Event "Titled Tuesday Blitz August 1 Early 2023"]
[White "Amilal Munkhdalai"]
[Black "Pranesh M"]
[WhiteFideId "4903250"]
[BlackFideId "35028600"]
[WhiteElo "2733"]
[BlackElo "3067"]
[Result "0-1"]
[Round "5"]
[TimeControl "180+1"]
[Date "2023.08.01"]
[WhiteClock "0:00:40"]
[BlackClock "0:00:58"]
[Board "12"]

1. e4 {[%clk 0:03:00]}  e5 {[%clk 0:02:58]} 2. Nf3 {[%clk 0:02:59]}  Nc6 {[%clk 0:02:58]} 3. Bb5 {[%clk 0:03:00]}  a6 {[%clk 0:02:58]} 4. Ba4 {[%clk 0:03:00]}  Nf6 {[%clk 0:02:58]} 5. O-O {[%clk 0:03:00]}  Bc5 {[%clk 0:02:57]} 6. c3 {[%clk 0:02:57]}  O-O {[%clk 0:02:57]} 7. d4 {[%clk 0:02:55]}  Ba7 {[%clk 0:02:58]} 8. dxe5 {[%clk 0:02:49]}  Nxe4 {[%clk 0:02:57]} 9. Bc2 {[%clk 0:02:32]}  d5 {[%clk 0:02:54]} 10. exd6 {[%clk 0:02:31]}  Nxd6 {[%clk 0:02:55]} 11. h3 {[%clk 0:02:30]}  Bf5 {[%clk 0:02:54]} 12. Bxf5 {[%clk 0:02:29]}  Nxf5 {[%clk 0:02:55]} 13. Qc2 {[%clk 0:02:28]}  Qf6 {[%clk 0:02:53]} 14. Bg5 {[%clk 0:02:10]}  Qg6 {[%clk 0:02:52]} 15. Bf4 {[%clk 0:02:01]}  Nh4 {[%clk 0:02:20]} 16. Qxg6 {[%clk 0:01:58]}  Nxf3+ {[%clk 0:02:20]} 17. gxf3 {[%clk 0:01:58]}  fxg6 {[%clk 0:02:21]} 18. Bxc7 {[%clk 0:01:58]}  Rxf3 {[%clk 0:02:21]} 19. Nd2 {[%clk 0:01:54]}  Rxh3 {[%clk 0:02:20]} 20. Nc4 {[%clk 0:01:53]}  Rc8 {[%clk 0:02:11]} 21. Bh2 {[%clk 0:01:48]}  Rf8 {[%clk 0:02:02]} 22. Kg2 {[%clk 0:01:44]}  Rh4 {[%clk 0:02:00]} 23. Nd6 {[%clk 0:01:30]}  Rxh2+ {[%clk 0:01:57]} 24. Kxh2 {[%clk 0:01:29]}  Bb8 {[%clk 0:01:58]} 25. Rad1 {[%clk 0:01:29]}  Rf6 {[%clk 0:01:58]} 26. Rd5 {[%clk 0:01:20]}  Rxd6 {[%clk 0:01:55]} 27. Rxd6 {[%clk 0:01:19]}  Bxd6+ {[%clk 0:01:56]} 28. Kh3 {[%clk 0:01:20]}  Kf7 {[%clk 0:01:56]} 29. Rd1 {[%clk 0:01:20]}  Ke7 {[%clk 0:01:56]} 30. Kg4 {[%clk 0:01:20]}  h6 {[%clk 0:01:56]} 31. f4 {[%clk 0:01:20]}  Ke6 {[%clk 0:01:53]} 32. Re1+ {[%clk 0:01:20]}  Kd7 {[%clk 0:01:53]} 33. Rd1 {[%clk 0:01:17]}  Ne7 {[%clk 0:01:53]} 34. Re1 {[%clk 0:01:15]}  Ng8 {[%clk 0:01:53]} 35. Kf3 {[%clk 0:01:14]}  Nf6 {[%clk 0:01:53]} 36. Rg1 {[%clk 0:01:14]}  Ke6 {[%clk 0:01:40]} 37. Rxg6 {[%clk 0:01:14]}  Kf7 {[%clk 0:01:41]} 38. Rg1 {[%clk 0:01:14]}  Bc7 {[%clk 0:01:39]} 39. f5 {[%clk 0:01:12]}  Ne8 {[%clk 0:01:31]} 40. Rg6 {[%clk 0:01:09]}  Nd6 {[%clk 0:01:28]} 41. Kg4 {[%clk 0:01:09]}  Nc4 {[%clk 0:01:23]} 42. Kh5 {[%clk 0:01:09]}  Nxb2 {[%clk 0:01:15]} 43. f6 {[%clk 0:01:09]}  gxf6 {[%clk 0:01:15]} 44. Rxh6 {[%clk 0:01:09]}  Ke6 {[%clk 0:01:14]} 45. Rh7 {[%clk 0:01:09]}  Kd6 {[%clk 0:01:14]} 46. Kg6 {[%clk 0:01:09]}  Na4 {[%clk 0:01:15]} 47. c4 {[%clk 0:01:09]}  Kc6 {[%clk 0:01:10]} 48. Kxf6 {[%clk 0:01:08]}  Nb6 {[%clk 0:01:10]} 49. Kf5 {[%clk 0:00:55]}  Nxc4 {[%clk 0:01:10]} 50. Ke4 {[%clk 0:00:55]}  Bd6 {[%clk 0:01:07]} 51. Kd4 {[%clk 0:00:55]}  Na3 {[%clk 0:01:07]} 52. Rh5 {[%clk 0:00:52]}  Nb5+ {[%clk 0:01:07]} 53. Kc4 {[%clk 0:00:52]}  Nc7 {[%clk 0:01:07]} 54. a4 {[%clk 0:00:50]}  b6 {[%clk 0:01:05]} 55. Rf5 {[%clk 0:00:49]}  Ne6 {[%clk 0:01:05]} 56. Rf6 {[%clk 0:00:47]}  Nc5 {[%clk 0:01:05]} 57. a5 {[%clk 0:00:44]}  b5+ {[%clk 0:01:05]} 58. Kd4 {[%clk 0:00:40]}  Nb3+ {[%clk 0:01:05]} 59. Kc3 {[%clk 0:00:40]}  Nxa5 {[%clk 0:01:06]} 60. Rf5 {[%clk 0:00:40]}  Nc4 {[%clk 0:01:05]} 61. Rh5 {[%clk 0:00:39]}  Nb6 {[%clk 0:01:05]} 62. Rf5 {[%clk 0:00:39]}  a5 {[%clk 0:01:05]} 63. Kb3 {[%clk 0:00:39]}  a4+ {[%clk 0:01:05]} 64. Kc3 {[%clk 0:00:39]}  Nd5+ {[%clk 0:01:05]} 65. Kd4 {[%clk 0:00:39]}  Bc5+ {[%clk 0:01:06]} 66. Ke4 {[%clk 0:00:40]}  Nb4 {[%clk 0:00:58]} 67. Rf6+ {[%clk 0:00:37]}  Bd6 {[%clk 0:00:58]} 68. Kd4 {[%clk 0:00:38]}  a3 {[%clk 0:00:58]} 69. Rf1 {[%clk 0:00:34]}  a2 {[%clk 0:00:55]} 70. Kc3 {[%clk 0:00:33]}  a1=Q+ {[%clk 0:00:52]} 71. Rxa1 {[%clk 0:00:33]}  Be5+ {[%clk 0:00:52]} 72. Kxb4 {[%clk 0:00:33]}  Bxa1 {[%clk 0:00:53]} 73. Kb3 {[%clk 0:00:33]}  Kc5 {[%clk 0:00:53]} 74. Ka2 {[%clk 0:00:34]}  Bf6 {[%clk 0:00:53]} 75. Kb3 {[%clk 0:00:35]}  Be5 {[%clk 0:00:53]} 76. Kc2 {[%clk 0:00:35]}  Kc4 {[%clk 0:00:54]} 77. Kb1 {[%clk 0:00:36]}  b4 {[%clk 0:00:54]} 78. Kc2 {[%clk 0:00:36]}  b3+ {[%clk 0:00:54]} 79. Kb1 {[%clk 0:00:37]}  Kb4 {[%clk 0:00:55]} 80. Kc1 {[%clk 0:00:37]}  Ka3 {[%clk 0:00:56]} 81. Kb1 {[%clk 0:00:38]}  Bf6 {[%clk 0:00:57]} 82. Kc1 {[%clk 0:00:38]}  Ka2 {[%clk 0:00:58]} 83. Kd2 {[%clk 0:00:38]}  b2 {[%clk 0:00:58]} 84. Kd3 {[%clk 0:00:39]}  b1=Q+ {[%clk 0:00:59]} 85. Ke3 {[%clk 0:00:39]}  Qb4 {[%clk 0:00:59]} 86. Kf3 {[%clk 0:00:40]}  Qd4 {[%clk 0:00:59]} 87. Kg3 {[%clk 0:00:41]}  Qe4 {[%clk 0:01:00]} 88. Kh3 {[%clk 0:00:41]}  Qg6 {[%clk 0:00:58]} 89. Kh2 {[%clk 0:00:42]}  Bh4 {[%clk 0:00:57]} 90. Kh1 {[%clk 0:00:40]}  Bf2 {[%clk 0:00:58]} 0-1


[Site "https://www.chess.com"]

[Event "Titled Tuesday Blitz August 1 Early 2023"]
[White "JeRoma71"]
[Black "Yanchenko, Roman"]
[BlackFideId "4137329"]
[WhiteElo "2890"]
[BlackElo "2732"]
[Result "1-0"]
[Round "5"]
[TimeControl "180+1"]
[Date "2023.08.01"]
[WhiteClock "0:01:19"]
[BlackClock "0:00:00"]
[Board "13"]

1. Nf3 {[%clk 0:02:59]}  d5 {[%clk 0:02:59]} 2. g3 {[%clk 0:02:59]}  Nf6 {[%clk 0:03:00]} 3. Bg2 {[%clk 0:03:00]}  Bf5 {[%clk 0:03:00]} 4. O-O {[%clk 0:03:01]}  e6 {[%clk 0:03:00]} 5. c4 {[%clk 0:03:01]}  c6 {[%clk 0:03:01]} 6. Qb3 {[%clk 0:03:02]}  Qb6 {[%clk 0:03:01]} 7. d3 {[%clk 0:03:02]}  Nbd7 {[%clk 0:03:01]} 8. Be3 {[%clk 0:03:02]}  Bc5 {[%clk 0:03:01]} 9. Bxc5 {[%clk 0:03:01]}  Nxc5 {[%clk 0:03:01]} 10. Qc3 {[%clk 0:03:02]}  dxc4 {[%clk 0:02:25]} 11. Qxc4 {[%clk 0:02:55]}  O-O {[%clk 0:02:03]} 12. Nc3 {[%clk 0:02:51]}  Rad8 {[%clk 0:02:00]} 13. b4 {[%clk 0:02:50]}  Ncd7 {[%clk 0:02:01]} 14. a4 {[%clk 0:02:47]}  a6 {[%clk 0:02:00]} 15. a5 {[%clk 0:02:43]}  Qa7 {[%clk 0:02:00]} 16. Na4 {[%clk 0:02:40]}  Bg4 {[%clk 0:01:51]} 17. Qc3 {[%clk 0:02:22]}  Nd5 {[%clk 0:01:50]} 18. Qb2 {[%clk 0:02:22]}  Bxf3 {[%clk 0:01:40]} 19. Bxf3 {[%clk 0:02:22]}  Qb8 {[%clk 0:01:40]} 20. Rac1 {[%clk 0:02:21]}  Nc7 {[%clk 0:01:32]} 21. Nc5 {[%clk 0:02:18]}  Nxc5 {[%clk 0:01:31]} 22. bxc5 {[%clk 0:02:19]}  Nb5 {[%clk 0:01:31]} 23. Rfd1 {[%clk 0:02:18]}  Qc7 {[%clk 0:01:23]} 24. Qb4 {[%clk 0:02:06]}  Rd4 {[%clk 0:01:22]} 25. Rc4 {[%clk 0:02:06]}  Rfd8 {[%clk 0:01:22]} 26. Rb1 {[%clk 0:02:04]}  g6 {[%clk 0:01:15]} 27. Kg2 {[%clk 0:02:03]}  h5 {[%clk 0:01:14]} 28. h4 {[%clk 0:02:01]}  R8d7 {[%clk 0:01:03]} 29. Be4 {[%clk 0:01:58]}  Rxc4 {[%clk 0:00:57]} 30. dxc4 {[%clk 0:01:59]}  Nd4 {[%clk 0:00:57]} 31. e3 {[%clk 0:01:57]}  Nf5 {[%clk 0:00:57]} 32. Qc3 {[%clk 0:01:47]}  Qd8 {[%clk 0:00:55]} 33. Rb2 {[%clk 0:01:44]}  Qe7 {[%clk 0:00:50]} 34. Qe5 {[%clk 0:01:40]}  Qd8 {[%clk 0:00:49]} 35. Bxc6 {[%clk 0:01:37]}  Rd1 {[%clk 0:00:34]} 36. Bf3 {[%clk 0:01:24]}  Rc1 {[%clk 0:00:01]} 37. c6 {[%clk 0:01:19]}  Qd3 {[%clk 0:00:00]} 38. Be2 {[%clk 0:01:19]} 1-0


[Site "https://www.chess.com"]

[Event "Titled Tuesday Blitz August 1 Early 2023"]
[White "Ardelean, George-Catalin"]
[Black "Zhigalko, Sergei"]
[WhiteFideId "1207091"]
[BlackFideId "13502956"]
[WhiteElo "2716"]
[BlackElo "2883"]
[Result "0-1"]
[Round "5"]
[TimeControl "180+1"]
[Date "2023.08.01"]
[WhiteClock "0:00:00"]
[BlackClock "0:00:01"]
[Board "14"]

1. d4 {[%clk 0:03:00]}  Nf6 {[%clk 0:02:59]} 2. Bf4 {[%clk 0:03:00]}  e6 {[%clk 0:02:59]} 3. e3 {[%clk 0:03:00]}  b6 {[%clk 0:02:58]} 4. Qf3 {[%clk 0:03:00]}  Nc6 {[%clk 0:02:58]} 5. Nc3 {[%clk 0:02:59]}  Bb7 {[%clk 0:02:58]} 6. O-O-O {[%clk 0:02:59]}  Rb8 {[%clk 0:02:50]} 7. e4 {[%clk 0:02:55]}  Bb4 {[%clk 0:02:41]} 8. Nge2 {[%clk 0:02:35]}  O-O {[%clk 0:02:35]} 9. g4 {[%clk 0:02:28]}  d5 {[%clk 0:02:26]} 10. e5 {[%clk 0:02:03]}  Ne4 {[%clk 0:02:24]} 11. g5 {[%clk 0:01:42]}  Ne7 {[%clk 0:01:53]} 12. h4 {[%clk 0:01:31]}  c5 {[%clk 0:01:48]} 13. Nb5 {[%clk 0:01:18]}  Bc6 {[%clk 0:01:22]} 14. Nec3 {[%clk 0:01:11]}  cxd4 {[%clk 0:01:07]} 15. Nxd4 {[%clk 0:00:45]}  Bxc3 {[%clk 0:01:03]} 16. bxc3 {[%clk 0:00:45]}  Rc8 {[%clk 0:01:00]} 17. h5 {[%clk 0:00:40]}  Ba4 {[%clk 0:00:59]} 18. c4 {[%clk 0:00:40]}  Nc6 {[%clk 0:00:45]} 19. g6 {[%clk 0:00:29]}  fxg6 {[%clk 0:00:32]} 20. Nxe6 {[%clk 0:00:23]}  Qe7 {[%clk 0:00:33]} 21. Nxf8 {[%clk 0:00:19]}  Rxf8 {[%clk 0:00:34]} 22. Rh3 {[%clk 0:00:17]}  g5 {[%clk 0:00:29]} 23. cxd5 {[%clk 0:00:14]}  Rxf4 {[%clk 0:00:28]} 24. Qa3 {[%clk 0:00:07]}  Nb4 {[%clk 0:00:21]} 25. Qxa4 {[%clk 0:00:06]}  Nxf2 {[%clk 0:00:10]} 26. d6 {[%clk 0:00:03]}  Qxe5 {[%clk 0:00:09]} 27. d7 {[%clk 0:00:04]}  Qa1+ {[%clk 0:00:08]} 28. Kd2 {[%clk 0:00:04]}  Qxd1+ {[%clk 0:00:08]} 29. Kc3 {[%clk 0:00:04]}  Qa1+ {[%clk 0:00:04]} 30. Kb3 {[%clk 0:00:03]}  Qb1+ {[%clk 0:00:05]} 31. Kc3 {[%clk 0:00:03]}  Ne4+ {[%clk 0:00:02]} 32. Kd4 {[%clk 0:00:02]}  Nc5+ {[%clk 0:00:03]} 33. Ke5 {[%clk 0:00:01]}  Qe1+ {[%clk 0:00:02]} 34. Kd6 {[%clk 0:00:00]}  Nb7+ {[%clk 0:00:01]} 0-1


[Site "https://www.chess.com"]

[Event "Titled Tuesday Blitz August 1 Early 2023"]
[White "Ohanyan, Emin"]
[Black "Pastar, Slaven"]
[WhiteFideId "13312022"]
[BlackFideId "14402718"]
[WhiteElo "2817"]
[BlackElo "2584"]
[Result "1-0"]
[Round "5"]
[TimeControl "180+1"]
[Date "2023.08.01"]
[WhiteClock "0:00:34"]
[BlackClock "0:00:00"]
[Board "18"]

1. d4 {[%clk 0:03:00]}  b6 {[%clk 0:03:00]} 2. e4 {[%clk 0:03:01]}  Bb7 {[%clk 0:03:01]} 3. Bd3 {[%clk 0:03:01]}  Nf6 {[%clk 0:03:01]} 4. Nd2 {[%clk 0:03:01]}  e6 {[%clk 0:03:01]} 5. Ne2 {[%clk 0:02:57]}  d6 {[%clk 0:02:53]} 6. O-O {[%clk 0:02:56]}  g6 {[%clk 0:02:54]} 7. f4 {[%clk 0:02:54]}  Bg7 {[%clk 0:02:53]} 8. e5 {[%clk 0:02:53]}  Nfd7 {[%clk 0:02:50]} 9. Be4 {[%clk 0:02:52]}  Bxe4 {[%clk 0:02:48]} 10. Nxe4 {[%clk 0:02:53]}  d5 {[%clk 0:02:48]} 11. Nd2 {[%clk 0:02:41]}  c5 {[%clk 0:02:47]} 12. c3 {[%clk 0:02:39]}  Nc6 {[%clk 0:02:46]} 13. Nf3 {[%clk 0:02:39]}  O-O {[%clk 0:02:41]} 14. g4 {[%clk 0:02:39]}  f5 {[%clk 0:02:38]} 15. gxf5 {[%clk 0:02:29]}  Rxf5 {[%clk 0:02:20]} 16. Ng3 {[%clk 0:02:25]}  Rf8 {[%clk 0:02:21]} 17. h4 {[%clk 0:02:19]}  Qe8 {[%clk 0:01:54]} 18. Kg2 {[%clk 0:02:13]}  Ne7 {[%clk 0:01:53]} 19. Ng5 {[%clk 0:02:08]}  Nf5 {[%clk 0:01:52]} 20. Nxf5 {[%clk 0:02:06]}  Rxf5 {[%clk 0:01:51]} 21. Qg4 {[%clk 0:02:05]}  cxd4 {[%clk 0:01:42]} 22. cxd4 {[%clk 0:02:05]}  Rc8 {[%clk 0:01:42]} 23. Be3 {[%clk 0:02:05]}  b5 {[%clk 0:01:38]} 24. Rac1 {[%clk 0:02:04]}  Nb6 {[%clk 0:01:39]} 25. b3 {[%clk 0:02:04]}  h6 {[%clk 0:01:28]} 26. Rxc8 {[%clk 0:02:02]}  Nxc8 {[%clk 0:01:14]} 27. Nf3 {[%clk 0:02:02]}  Rf8 {[%clk 0:01:11]} 28. Rc1 {[%clk 0:02:02]}  Qf7 {[%clk 0:01:10]} 29. Ne1 {[%clk 0:01:53]}  Ne7 {[%clk 0:01:10]} 30. Nd3 {[%clk 0:01:51]}  Nf5 {[%clk 0:01:10]} 31. Bf2 {[%clk 0:01:51]}  Re8 {[%clk 0:00:56]} 32. Rc6 {[%clk 0:01:51]}  Qb7 {[%clk 0:00:40]} 33. Rc1 {[%clk 0:01:46]}  Kh7 {[%clk 0:00:36]} 34. Kh2 {[%clk 0:01:44]}  h5 {[%clk 0:00:34]} 35. Qd1 {[%clk 0:01:38]}  Rc8 {[%clk 0:00:34]} 36. Nc5 {[%clk 0:01:38]}  Qe7 {[%clk 0:00:33]} 37. Kh3 {[%clk 0:01:35]}  Bh6 {[%clk 0:00:34]} 38. Qf3 {[%clk 0:01:33]}  Rf8 {[%clk 0:00:33]} 39. Nd3 {[%clk 0:01:33]}  Rf7 {[%clk 0:00:29]} 40. Rc6 {[%clk 0:01:33]}  Qd7 {[%clk 0:00:18]} 41. Ra6 {[%clk 0:01:33]}  Qc8 {[%clk 0:00:17]} 42. Nc5 {[%clk 0:01:32]}  Ng7 {[%clk 0:00:17]} 43. Bg3 {[%clk 0:01:28]}  Rc7 {[%clk 0:00:16]} 44. Ra5 {[%clk 0:00:59]}  Rf7 {[%clk 0:00:15]} 45. Rxb5 {[%clk 0:00:56]}  Qf8 {[%clk 0:00:13]} 46. Rb7 {[%clk 0:00:48]}  Rxb7 {[%clk 0:00:10]} 47. Nxb7 {[%clk 0:00:48]}  Qb4 {[%clk 0:00:06]} 48. Nd6 {[%clk 0:00:43]}  Qd2 {[%clk 0:00:06]} 49. Qf2 {[%clk 0:00:38]}  Qd1 {[%clk 0:00:07]} 50. Kg2 {[%clk 0:00:36]}  Qg4 {[%clk 0:00:04]} 51. Qf3 {[%clk 0:00:36]}  Nf5 {[%clk 0:00:01]} 52. Qxg4 {[%clk 0:00:36]}  Ne3+ {[%clk 0:00:01]} 53. Kf3 {[%clk 0:00:35]}  Nxg4 {[%clk 0:00:00]} 54. Nb5 {[%clk 0:00:34]} 1-0


[Site "https://www.chess.com"]

[Event "Titled Tuesday Blitz August 1 Early 2023"]
[White "Kim, Yoon-Young"]
[Black "Pranav, V"]
[WhiteFideId "30908779"]
[BlackFideId "25060783"]
[WhiteElo "2709"]
[BlackElo "3016"]
[Result "1-0"]
[Round "5"]
[TimeControl "180+1"]
[Date "2023.08.01"]
[WhiteClock "0:00:04"]
[BlackClock "0:00:02"]
[Board "20"]

1. d4 {[%clk 0:03:00]}  Nf6 {[%clk 0:03:00]} 2. c4 {[%clk 0:02:59]}  g6 {[%clk 0:03:00]} 3. Nc3 {[%clk 0:02:54]}  Bg7 {[%clk 0:03:00]} 4. Nf3 {[%clk 0:02:54]}  d6 {[%clk 0:03:01]} 5. Bg5 {[%clk 0:02:54]}  O-O {[%clk 0:03:01]} 6. e3 {[%clk 0:02:54]}  Nbd7 {[%clk 0:03:01]} 7. Be2 {[%clk 0:02:54]}  h6 {[%clk 0:03:01]} 8. Bh4 {[%clk 0:02:54]}  b6 {[%clk 0:03:01]} 9. Qc2 {[%clk 0:02:54]}  Bb7 {[%clk 0:03:01]} 10. O-O {[%clk 0:02:54]}  Re8 {[%clk 0:02:57]} 11. Rfd1 {[%clk 0:02:53]}  e5 {[%clk 0:02:48]} 12. Rac1 {[%clk 0:02:44]}  exd4 {[%clk 0:02:36]} 13. Nxd4 {[%clk 0:02:29]}  Nc5 {[%clk 0:02:31]} 14. b4 {[%clk 0:02:12]}  Nce4 {[%clk 0:02:20]} 15. Nxe4 {[%clk 0:02:11]}  Bxe4 {[%clk 0:02:21]} 16. Bd3 {[%clk 0:02:10]}  Bxd3 {[%clk 0:02:15]} 17. Rxd3 {[%clk 0:02:01]}  Qd7 {[%clk 0:02:11]} 18. c5 {[%clk 0:01:51]}  d5 {[%clk 0:02:04]} 19. c6 {[%clk 0:01:14]}  Qe7 {[%clk 0:02:03]} 20. a3 {[%clk 0:01:04]}  a5 {[%clk 0:02:00]} 21. Qb3 {[%clk 0:01:00]}  axb4 {[%clk 0:01:59]} 22. axb4 {[%clk 0:01:00]}  Red8 {[%clk 0:01:39]} 23. Nb5 {[%clk 0:00:49]}  Rac8 {[%clk 0:01:33]} 24. Na7 {[%clk 0:00:36]}  Ra8 {[%clk 0:01:30]} 25. Nb5 {[%clk 0:00:37]}  g5 {[%clk 0:01:11]} 26. Bg3 {[%clk 0:00:36]}  Rdc8 {[%clk 0:01:12]} 27. h3 {[%clk 0:00:33]}  Ne4 {[%clk 0:01:08]} 28. Rxd5 {[%clk 0:00:28]}  Nxg3 {[%clk 0:01:01]} 29. fxg3 {[%clk 0:00:29]}  Qe6 {[%clk 0:01:01]} 30. Qd3 {[%clk 0:00:22]}  Be5 {[%clk 0:00:55]} 31. Qe4 {[%clk 0:00:17]}  Re8 {[%clk 0:00:46]} 32. Rd7 {[%clk 0:00:11]}  Qb3 {[%clk 0:00:36]} 33. Qf3 {[%clk 0:00:07]}  Rf8 {[%clk 0:00:09]} 34. Nxc7 {[%clk 0:00:04]}  Qb2 {[%clk 0:00:06]} 35. Rf1 {[%clk 0:00:04]}  Rac8 {[%clk 0:00:04]} 36. Rxf7 {[%clk 0:00:02]}  Bg7 {[%clk 0:00:03]} 37. Ne6 {[%clk 0:00:02]}  Qxb4 {[%clk 0:00:01]} 38. Rxg7+ {[%clk 0:00:01]}  Kh8 {[%clk 0:00:02]} 39. Qxf8+ {[%clk 0:00:02]}  Rxf8 {[%clk 0:00:02]} 40. Rxf8+ {[%clk 0:00:02]}  Qxf8 {[%clk 0:00:02]} 41. Nxf8 {[%clk 0:00:03]}  Kxg7 {[%clk 0:00:02]} 42. c7 {[%clk 0:00:04]} 1-0


[Site "https://www.chess.com"]

[Event "Titled Tuesday Blitz August 1 Early 2023"]
[White "Schnaider, Ilan"]
[Black "Xu, Xiangyu"]
[WhiteFideId "169013"]
[BlackFideId "8608288"]
[WhiteElo "2702"]
[BlackElo "2994"]
[Result "0-1"]
[Round "5"]
[TimeControl "180+1"]
[Date "2023.08.01"]
[WhiteClock "0:00:01"]
[BlackClock "0:01:44"]
[Board "22"]

1. e4 {[%clk 0:03:00]}  e5 {[%clk 0:02:59]} 2. Nf3 {[%clk 0:03:00]}  Nc6 {[%clk 0:02:59]} 3. Bc4 {[%clk 0:03:01]}  Bc5 {[%clk 0:02:53]} 4. c3 {[%clk 0:03:00]}  Nf6 {[%clk 0:02:53]} 5. d3 {[%clk 0:03:01]}  d6 {[%clk 0:02:50]} 6. O-O {[%clk 0:03:00]}  Bb6 {[%clk 0:02:44]} 7. Re1 {[%clk 0:02:58]}  h6 {[%clk 0:02:43]} 8. Nbd2 {[%clk 0:02:55]}  Ng4 {[%clk 0:02:40]} 9. Rf1 {[%clk 0:02:42]}  g5 {[%clk 0:02:33]} 10. b4 {[%clk 0:02:18]}  a5 {[%clk 0:02:31]} 11. b5 {[%clk 0:02:13]}  Ne7 {[%clk 0:02:31]} 12. d4 {[%clk 0:02:09]}  Ng6 {[%clk 0:02:29]} 13. h3 {[%clk 0:01:37]}  Nf6 {[%clk 0:02:28]} 14. dxe5 {[%clk 0:01:37]}  dxe5 {[%clk 0:02:26]} 15. Qb3 {[%clk 0:01:31]}  O-O {[%clk 0:02:17]} 16. Ba3 {[%clk 0:01:30]}  g4 {[%clk 0:02:18]} 17. Bxf8 {[%clk 0:01:23]}  Qxf8 {[%clk 0:02:19]} 18. hxg4 {[%clk 0:01:21]}  Nxg4 {[%clk 0:02:19]} 19. Nh2 {[%clk 0:01:05]}  Nf6 {[%clk 0:02:00]} 20. Kh1 {[%clk 0:01:01]}  Nf4 {[%clk 0:01:57]} 21. Ndf3 {[%clk 0:00:55]}  Qg7 {[%clk 0:01:56]} 22. g3 {[%clk 0:00:50]}  Nxe4 {[%clk 0:01:56]} 23. Bxf7+ {[%clk 0:00:24]}  Kh8 {[%clk 0:01:55]} 24. gxf4 {[%clk 0:00:20]}  Bh3 {[%clk 0:01:55]} 25. Ng5 {[%clk 0:00:20]}  hxg5 {[%clk 0:01:54]} 26. c4 {[%clk 0:00:20]}  Bxf1 {[%clk 0:01:49]} 27. Rxf1 {[%clk 0:00:18]}  Qxf7 {[%clk 0:01:49]} 28. Qh3+ {[%clk 0:00:16]}  Kg7 {[%clk 0:01:47]} 29. Qg2 {[%clk 0:00:08]}  Qxc4 {[%clk 0:01:46]} 30. fxe5 {[%clk 0:00:05]}  Rh8 {[%clk 0:01:44]} 31. f4 {[%clk 0:00:05]}  Ng3+ {[%clk 0:01:43]} 32. Qxg3 {[%clk 0:00:01]}  Qxf1+ {[%clk 0:01:44]} 0-1


[Site "https://www.chess.com"]

[Event "Titled Tuesday Blitz August 1 Early 2023"]
[White "Zeynalli, Rashad"]
[Black "Hovhannisyan, Robert"]
[WhiteFideId "13403320"]
[BlackFideId "13302507"]
[WhiteElo "2701"]
[BlackElo "2958"]
[Result "0-1"]
[Round "5"]
[TimeControl "180+1"]
[Date "2023.08.01"]
[WhiteClock "0:01:34"]
[BlackClock "0:02:07"]
[Board "23"]

1. e4 {[%clk 0:03:00]}  e5 {[%clk 0:03:00]} 2. Nf3 {[%clk 0:03:00]}  Nc6 {[%clk 0:03:00]} 3. Bc4 {[%clk 0:03:01]}  Bc5 {[%clk 0:02:59]} 4. c3 {[%clk 0:03:01]}  Nf6 {[%clk 0:02:59]} 5. d4 {[%clk 0:03:02]}  exd4 {[%clk 0:02:59]} 6. e5 {[%clk 0:03:03]}  d5 {[%clk 0:02:58]} 7. Bb5 {[%clk 0:03:03]}  Ne4 {[%clk 0:02:59]} 8. cxd4 {[%clk 0:03:04]}  Bb6 {[%clk 0:02:59]} 9. Nc3 {[%clk 0:03:04]}  O-O {[%clk 0:02:59]} 10. Be3 {[%clk 0:03:03]}  Bg4 {[%clk 0:02:56]} 11. h3 {[%clk 0:03:04]}  Bh5 {[%clk 0:02:56]} 12. Qc2 {[%clk 0:03:04]}  Ba5 {[%clk 0:02:48]} 13. O-O {[%clk 0:03:03]}  Bxf3 {[%clk 0:02:31]} 14. gxf3 {[%clk 0:03:02]}  Ng5 {[%clk 0:02:32]} 15. Kg2 {[%clk 0:03:01]}  Ne6 {[%clk 0:02:26]} 16. Rad1 {[%clk 0:02:48]}  Bxc3 {[%clk 0:02:25]} 17. bxc3 {[%clk 0:02:47]}  f5 {[%clk 0:02:23]} 18. f4 {[%clk 0:02:37]}  Qh4 {[%clk 0:02:20]} 19. Bxc6 {[%clk 0:02:23]}  bxc6 {[%clk 0:02:20]} 20. Qd2 {[%clk 0:02:23]}  g5 {[%clk 0:02:18]} 21. f3 {[%clk 0:02:18]}  gxf4 {[%clk 0:02:14]} 22. Bf2 {[%clk 0:02:17]}  Qh5 {[%clk 0:02:14]} 23. Kh2 {[%clk 0:01:34]}  Ng5 {[%clk 0:02:07]} 0-1


[Site "https://www.chess.com"]

[Event "Titled Tuesday Blitz August 1 Early 2023"]
[White "Morefield, Jason"]
[Black "Shimanov, Aleksandr"]
[WhiteFideId "30920825"]
[BlackFideId "4198603"]
[WhiteElo "2699"]
[BlackElo "2943"]
[Result "0-1"]
[Round "5"]
[TimeControl "180+1"]
[Date "2023.08.01"]
[WhiteClock "0:00:00"]
[BlackClock "0:00:15"]
[Board "24"]

1. e4 {[%clk 0:03:00]}  e6 {[%clk 0:02:56]} 2. d4 {[%clk 0:03:00]}  d5 {[%clk 0:02:56]} 3. Nc3 {[%clk 0:03:00]}  Bb4 {[%clk 0:02:56]} 4. e5 {[%clk 0:03:00]}  c5 {[%clk 0:02:56]} 5. a3 {[%clk 0:03:01]}  Ba5 {[%clk 0:02:57]} 6. dxc5 {[%clk 0:02:50]}  Bxc3+ {[%clk 0:02:56]} 7. bxc3 {[%clk 0:02:50]}  Qc7 {[%clk 0:02:57]} 8. Nf3 {[%clk 0:02:36]}  Nd7 {[%clk 0:02:54]} 9. Qd4 {[%clk 0:02:33]}  Ne7 {[%clk 0:02:51]} 10. Bd3 {[%clk 0:02:32]}  Nxc5 {[%clk 0:02:43]} 11. O-O {[%clk 0:02:28]}  Bd7 {[%clk 0:02:14]} 12. a4 {[%clk 0:02:23]}  Rc8 {[%clk 0:02:11]} 13. Ba3 {[%clk 0:02:10]}  h6 {[%clk 0:01:45]} 14. Qh4 {[%clk 0:01:32]}  Qd8 {[%clk 0:01:39]} 15. Qg4 {[%clk 0:01:24]}  O-O {[%clk 0:01:38]} 16. Bb4 {[%clk 0:00:53]}  a5 {[%clk 0:01:36]} 17. Bxc5 {[%clk 0:00:43]}  Rxc5 {[%clk 0:01:37]} 18. Rfb1 {[%clk 0:00:40]}  Qc7 {[%clk 0:01:36]} 19. Qd4 {[%clk 0:00:27]}  Rc8 {[%clk 0:01:33]} 20. Ra3 {[%clk 0:00:26]}  b6 {[%clk 0:01:12]} 21. h3 {[%clk 0:00:21]}  Ng6 {[%clk 0:00:40]} 22. h4 {[%clk 0:00:16]}  Rxc3 {[%clk 0:00:38]} 23. Rxc3 {[%clk 0:00:16]}  Qxc3 {[%clk 0:00:39]} 24. Qxb6 {[%clk 0:00:13]}  Nf4 {[%clk 0:00:35]} 25. Ba6 {[%clk 0:00:11]}  Rf8 {[%clk 0:00:33]} 26. Bb5 {[%clk 0:00:05]}  Bxb5 {[%clk 0:00:25]} 27. Rxb5 {[%clk 0:00:06]}  Qxc2 {[%clk 0:00:20]} 28. Qxa5 {[%clk 0:00:05]}  Rc8 {[%clk 0:00:15]} 29. Qe1 {[%clk 0:00:03]}  Qg6 {[%clk 0:00:14]} 30. g3 {[%clk 0:00:00]}  Rc1 {[%clk 0:00:15]} 0-1


[Site "https://www.chess.com"]